bitfinex/quotes_BTCUSD_20240729
["timestamp","ask_amount","ask_price","bid_price","bid_amount"]
[1722260431385,1.39380788,69579.0,69578.0,0.008888]
[1722260431784,1.48350876,69579.0,69578.0,0.008888]
[1722260431984,1.40536853,69579.0,69578.0,0.008888]
[1722260432187,1.11792553,69579.0,69578.0,0.008888]
[1722260432529,1.05018581,69579.0,69578.0,0.008888]
[1722260432734,1.38248871,69579.0,69578.0,0.008888]
[1722260432932,1.09504571,69579.0,69578.0,0.008888]
[1722260433336,1.09604571,69579.0,69578.0,0.008888]
[1722260433678,1.5249556,69579.0,69578.0,0.008888]
[1722260433883,1.31660368,69579.0,69578.0,0.008888]
[1722260434183,1.05294632,69579.0,69578.0,0.008888]
[1722260434350,1.34038932,69579.0,69578.0,0.008888]
[1722260434561,0.27383932,69579.0,69578.0,0.008888]
[1722260434761,0.39505173,69579.0,69578.0,0.008888]
[1722260434962,0.96993773,69579.0,69578.0,0.008888]
[1722260435163,0.96893773,69579.0,69578.0,0.008888]
[1722260435367,0.68149473,69579.0,69578.0,0.008888]
[1722260435573,0.1798857,69579.0,69578.0,0.008888]
[1722260435897,0.09108761,69579.0,69578.0,0.008888]
[1722260436095,0.23180861,69579.0,69578.0,0.008888]
[1722260436411,0.23480861,69579.0,69578.0,0.008888]
[1722260436547,0.52225161,69579.0,69578.0,0.008888]
[1722260436907,0.80969461,69579.0,69578.0,0.008888]
[1722260437096,1.11664692,69579.0,69578.0,0.008888]
[1722260437303,1.21664692,69579.0,69578.0,0.008888]
[1722260437506,1.09259573,69579.0,69578.0,0.008888]
[1722260437935,1.38003873,69579.0,69578.0,0.008888]
[1722260438142,1.08759573,69579.0,69578.0,0.008888]
[1722260438390,1.56813812,69579.0,69578.0,0.00799921]
[1722260438562,1.33949008,69579.0,69578.0,0.00799921]
[1722260438787,1.21583646,69579.0,69578.0,0.00799921]
[1722260438965,1.34043155,69579.0,69578.0,0.00799921]
[1722260439219,1.62687455,69579.0,69578.0,0.00799921]
[1722260439419,1.1773415,69579.0,69578.0,0.00799921]
[1722260439626,1.30193693,69579.0,69578.0,0.00799921]
[1722260439833,1.22363525,69579.0,69578.0,0.00799921]
[1722260440025,1.21663525,69579.0,69578.0,0.00799921]
[1722260440223,1.23163525,69579.0,69578.0,0.00799921]
[1722260440434,1.59779122,69579.0,69578.0,0.00799921]
[1722260440643,1.30334822,69579.0,69578.0,0.00799921]
[1722260441005,1.16024883,69579.0,69578.0,0.00799921]
[1722260441204,1.15224883,69579.0,69578.0,0.00799921]
[1722260441415,1.12969386,69579.0,69578.0,0.00799921]
[1722260441641,1.56823625,69579.0,69578.0,0.00799921]
[1722260442049,1.56936655,69579.0,69578.0,0.00799921]
[1722260442474,1.63287775,69579.0,69578.0,0.00799921]
[1722260442875,1.56936655,69579.0,69578.0,0.00799921]
[1722260443094,1.67737271,69579.0,69578.0,0.00799921]
[1722260443313,1.61386151,69579.0,69578.0,0.00799921]
[1722260443495,1.60586151,69579.0,69578.0,0.00799921]
[1722260443872,1.61486151,69579.0,69578.0,0.00799921]
[1722260444074,1.72837271,69579.0,69578.0,0.00799921]
[1722260444416,1.66937271,69579.0,69578.0,0.00799921]
[1722260444753,1.62841737,69579.0,69578.0,0.00799921]
[1722260444954,1.67841737,69579.0,69578.0,0.00799921]
[1722260445161,1.53972449,69579.0,69578.0,0.00799921]
[1722260445554,1.66566013,69579.0,69578.0,0.00799921]
[1722260445748,1.75033061,69579.0,69578.0,0.00799921]
[1722260445967,1.75031976,69579.0,69578.0,0.00799921]
[1722260446375,1.61566013,69579.0,69578.0,0.00799921]
[1722260446747,1.57116517,69579.0,69578.0,0.00799921]
[1722260446950,1.56816517,69579.0,69578.0,0.00799921]
[1722260447110,1.56116517,69579.0,69578.0,0.00799921]
[1722260447331,1.57516517,69579.0,69578.0,0.00799921]
[1722260447533,1.58916517,69579.0,69578.0,0.00799921]
[1722260447932,1.56116517,69579.0,69578.0,0.00799921]
[1722260448343,1.4546989,69579.0,69578.0,0.00799921]
[1722260448544,1.4676989,69579.0,69578.0,0.00719929]
[1722260448745,1.48114324,69579.0,69578.0,0.00719929]
[1722260448950,1.30513014,69579.0,69578.0,0.00719929]
[1722260449347,1.43167711,69579.0,69578.0,0.00719929]
[1722260450236,1.6387765,69579.0,69578.0,0.00719929]
[1722260450596,1.5757765,69579.0,69578.0,0.00719929]
[1722260450802,1.5617765,69579.0,69578.0,0.00719929]
[1722260451021,1.5757765,69579.0,69578.0,0.00719929]
[1722260451269,1.64004003,69579.0,69578.0,0.00719929]
[1722260451598,1.64860236,69579.0,69578.0,0.00719929]
[1722260451800,1.59860236,69579.0,69578.0,0.00719929]
[1722260451997,1.64860236,69579.0,69578.0,0.00719929]
[1722260452222,1.66260236,69579.0,69578.0,0.00719929]
[1722260452626,0.71869,69571.0,69561.0,0.00401628]
[1722260452833,0.87939439,69571.0,69561.0,0.00401628]
[1722260453640,1.16687039,69571.0,69561.0,0.00401628]
[1722260453839,0.87939439,69571.0,69561.0,0.00401628]
[1722260454357,0.59191839,69571.0,69561.0,0.00401628]
[1722260454762,0.46510156,69571.0,69561.0,0.00401628]
[1722260455070,0.59692324,69571.0,69561.0,0.00401628]
[1722260455275,0.81172324,69571.0,69561.0,0.00401628]
[1722260455419,0.52424724,69571.0,69561.0,0.00401628]
[1722260455830,1.09919924,69571.0,69561.0,0.00401628]
[1722260456027,0.81172324,69571.0,69570.0,0.015]
[1722260456232,0.80572324,69571.0,69570.0,0.015]
[1722260456524,1.09319924,69571.0,69570.0,0.015]
[1722260456723,1.09619924,69571.0,69570.0,0.015]
[1722260456930,0.80872324,69571.0,69570.0,0.015]
[1722260457540,1.09619924,69571.0,69570.0,0.015]
[1722260457812,0.80872324,69571.0,69570.0,0.015]
[1722260458013,0.80816651,69571.0,69570.0,0.015]
[1722260458390,0.37695251,69571.0,69570.0,0.015]
[1722260458596,0.16820627,69571.0,69570.0,0.015]
[1722260458769,0.16320627,69571.0,69570.0,0.015]
[1722260459124,0.16020627,69571.0,69570.0,0.015]
[1722260459250,0.17120627,69571.0,69570.0,0.015]
[1722260459676,0.16620627,69571.0,69570.0,0.015]
[1722260459886,0.16620627,69571.0,69570.0,0.22429939]
[1722260459887,0.0830598,69571.0,69570.0,0.22429939]
[1722260460082,0.0830598,69571.0,69570.0,0.29729939]
[1722260460402,0.05117224,69571.0,69570.0,0.27359939]
[1722260460583,0.07404814,69571.0,69570.0,0.27359939]
[1722260460793,0.02655384,69571.0,69570.0,0.27359939]
[1722260461015,0.0514979,69571.0,69570.0,0.27359939]
[1722260461218,0.0514979,69571.0,69570.0,1.02636294]
[1722260461612,0.004,69571.0,69570.0,1.41584294]
[1722260462030,0.004,69571.0,69570.0,1.41725589]
[1722260462271,0.41511738,69605.0,69586.0,0.05]
[1722260462272,0.04245425,69605.0,69586.0,0.05]
[1722260462471,0.42926131,69598.0,69588.0,0.07154355]
[1722260462674,0.49169538,69611.0,69587.0,0.16897277]
[1722260462675,0.06995059,69597.0,69589.0,0.14309939]
[1722260462875,0.06995059,69596.0,69589.0,0.14309939]
[1722260463081,0.06995059,69595.0,69589.0,0.14309939]
[1722260463285,0.06995059,69594.0,69589.0,0.0638]
[1722260463492,0.00765051,69596.0,69589.0,0.0638]
[1722260463493,0.06979231,69593.0,69589.0,0.0638]
[1722260463706,0.04729383,69592.0,69589.0,0.0638]
[1722260463916,0.04729383,69592.0,69590.0,0.21464294]
[1722260463917,0.05494434,69592.0,69590.0,0.21464294]
[1722260464128,0.00765051,69592.0,69591.0,0.023]
[1722260464339,0.03019848,69592.0,69591.0,0.16609939]
[1722260464545,0.03019848,69592.0,69591.0,0.21609939]
[1722260464761,0.02254797,69592.0,69591.0,0.19239939]
[1722260465166,0.287316,69610.0,69591.0,0.19239939]
[1722260465167,0.143663,69608.0,69591.0,0.19239939]
[1722260465373,0.06971819,69607.0,69592.0,0.14309939]
[1722260465592,0.06971819,69607.0,69584.0,0.1]
[1722260465593,0.143704,69588.0,69583.0,0.0638]
[1722260465800,0.143704,69588.0,69571.0,0.05]
[1722260465801,0.35891655,69596.0,69573.0,0.468]
[1722260465802,0.143729,69576.0,69573.0,0.468]
[1722260466025,0.287422,69584.0,69570.0,0.0788]
[1722260466026,0.143738,69571.0,69570.0,0.015]
[1722260466223,0.06972871,69571.0,69570.0,0.015]
[1722260466442,0.02250881,69571.0,69570.0,0.015]
[1722260466650,0.19979559,69571.0,69570.0,0.015]
[1722260466857,0.5097804,69571.0,69570.0,0.015]
[1722260467063,0.07857421,69571.0,69570.0,0.015]
[1722260467479,0.22231221,69571.0,69570.0,0.015]
[1722260467607,0.50978821,69571.0,69570.0,0.015]
[1722260467809,0.22231221,69571.0,69570.0,0.015]
[1722260468044,0.50978821,69571.0,69570.0,0.015]
[1722260468217,0.24486776,69571.0,69570.0,0.015]
[1722260468833,0.10112976,69571.0,69570.0,0.015]
[1722260469032,0.10303548,69571.0,69570.0,0.015]
[1722260469261,0.08052667,69571.0,69570.0,0.15809939]
[1722260469435,0.03198944,69571.0,69570.0,0.20739939]
[1722260469654,0.02455555,69571.0,69570.0,0.34084294]
[1722260470154,0.02455555,69571.0,69570.0,0.24629939]
[1722260470482,0.02455555,69571.0,69570.0,0.0769]
[1722260470794,0.02455555,69571.0,69570.0,0.015]
[1722260470988,0.07330925,69571.0,69570.0,0.015]
[1722260471194,0.08070073,69571.0,69570.0,0.015]
[1722260472734,0.08058865,69571.0,69570.0,0.15809939]
[1722260472941,0.03194703,69571.0,69570.0,0.18109939]
[1722260473158,0.03194703,69571.0,69570.0,0.92396294]
[1722260473357,0.03194703,69571.0,69570.0,0.49474294]
[1722260473358,0.02455555,69571.0,69570.0,0.49474294]
[1722260473763,0.02455555,69571.0,69570.0,1.02596294]
[1722260474174,0.04243924,69595.0,69585.0,0.05]
[1722260474387,0.1447,69607.0,69585.0,0.05]
[1722260474388,0.04824702,69594.0,69586.0,0.21939939]
[1722260474595,0.04824702,69594.0,69586.0,0.16939939]
[1722260474596,0.04824702,69593.0,69586.0,0.16939939]
[1722260474797,0.06365886,69603.0,69578.0,0.3993]
[1722260474798,0.04824626,69592.0,69578.0,0.3993]
[1722260474971,0.04824626,69591.0,69579.0,0.16609939]
[1722260475207,0.04824626,69590.0,69579.0,0.16609939]
[1722260475409,0.04824626,69589.0,69579.0,0.16609939]
[1722260475834,0.05581095,69588.0,69579.0,0.16609939]
[1722260476008,0.0482114,69587.0,69579.0,0.16609939]
[1722260476457,0.04803567,69586.0,69578.0,0.373]
[1722260476665,0.12673567,69585.0,69570.0,0.015]
[1722260476879,0.04803567,69584.0,69571.0,0.28764294]
[1722260477052,0.04803567,69584.0,69579.0,0.002]
[1722260477280,0.04803567,69584.0,69580.0,0.14209939]
[1722260477281,0.00760455,69583.0,69580.0,0.14209939]
[1722260477475,0.05591818,69583.0,69580.0,0.14209939]
[1722260477772,0.04831363,69582.0,69571.0,0.023]
[1722260477927,0.04831363,69582.0,69572.0,0.14309939]
[1722260478127,0.00741785,69581.0,69573.0,0.023]
[1722260478330,0.04790781,69580.0,69574.0,0.14309939]
[1722260478563,0.02255032,69583.0,69574.0,0.14309939]
[1722260478769,0.02255032,69583.0,69570.0,0.015]
[1722260478770,0.143738,69571.0,69570.0,0.015]
[1722260478967,0.0479035,69571.0,69570.0,0.015]
[1722260479319,0.05513765,69571.0,69570.0,0.015]
[1722260479653,0.05513765,69571.0,69570.0,0.15809939]
[1722260479844,0.04804029,69571.0,69570.0,0.15809939]
[1722260480052,0.00707401,69571.0,69570.0,0.015]
[1722260480265,0.04816967,69571.0,69570.0,0.015]
[1722260480471,0.48657253,69571.0,69570.0,0.015]
[1722260480880,0.07786921,69571.0,69570.0,0.015]
[1722260481131,0.05535853,69571.0,69570.0,0.015]
[1722260481481,0.05535853,69571.0,69570.0,0.16209939]
[1722260481482,0.05735853,69571.0,69570.0,0.16209939]
[1722260481679,0.00818886,69571.0,69570.0,0.16209939]
[1722260481830,0.00818886,69571.0,69570.0,0.28364294]
[1722260482056,0.00818886,69571.0,69570.0,0.44594294]
[1722260482214,0.001,69571.0,69570.0,0.58968294]
[1722260482414,0.001,69571.0,69570.0,0.87716294]
[1722260482613,0.02355205,69571.0,69570.0,0.68968294]
[1722260482999,0.02355205,69571.0,69570.0,0.97916294]
[1722260483246,0.02455205,69571.0,69570.0,0.97916294]
[1722260483497,0.02255205,69571.0,69570.0,0.97516294]
[1722260483662,0.001,69571.0,69570.0,1.56664294]
[1722260483839,0.002,69571.0,69570.0,1.59294294]
[1722260484040,0.002,69571.0,69570.0,1.30546294]
[1722260484266,0.002,69571.0,69570.0,1.59294294]
[1722260484663,0.001,69571.0,69570.0,1.58894294]
[1722260485249,0.0424138,69607.0,69596.0,0.05]
[1722260485452,0.42926131,69599.0,69597.0,0.14597249]
[1722260485602,0.04829822,69606.0,69598.0,0.073]
[1722260485603,0.00740748,69606.0,69598.0,0.073]
[1722260485819,0.0666,69615.0,69604.0,0.05]
[1722260486020,0.0666,69615.0,69605.0,0.16609939]
[1722260486021,0.04829546,69614.0,69605.0,0.16609939]
[1722260486382,0.04829546,69613.0,69605.0,0.16609939]
[1722260486762,0.04829546,69612.0,69605.0,0.16609939]
[1722260486962,0.04829546,69611.0,69605.0,0.16609939]
[1722260487369,0.04829546,69611.0,69605.0,0.14309939]
[1722260487576,0.02254153,69612.0,69606.0,0.023]
[1722260487702,0.02254153,69612.0,69607.0,0.14309939]
[1722260488132,0.02254153,69612.0,69598.0,0.0383]
[1722260488306,0.04807839,69611.0,69599.0,0.14309939]
[1722260489194,0.04807839,69611.0,69596.0,0.01780388]
[1722260489195,0.0793,69604.0,69596.0,0.01780388]
[1722260489466,0.0793,69604.0,69597.0,0.14309939]
[1722260489467,0.04807839,69603.0,69597.0,0.14309939]
[1722260489607,0.062,69608.0,69597.0,0.14309939]
[1722260489806,0.04827943,69607.0,69597.0,0.14309939]
[1722260490435,0.02249959,69606.0,69597.0,0.14309939]
[1722260490658,0.04827943,69605.0,69597.0,0.14309939]
[1722260490879,0.04827943,69605.0,69596.0,0.01780388]
[1722260490880,0.04827943,69604.0,69596.0,0.01780388]
[1722260491119,0.19195143,69603.0,69596.0,0.01780388]
[1722260491310,0.04799925,69603.0,69596.0,0.01780388]
[1722260491512,0.062,69608.0,69596.0,0.01780388]
[1722260491513,0.04799925,69602.0,69596.0,0.01780388]
[1722260491721,0.04799925,69601.0,69596.0,0.01780388]
[1722260492060,0.062,69608.0,69597.0,0.14309939]
[1722260492061,0.04799925,69600.0,69597.0,0.14309939]
[1722260492232,0.062,69608.0,69597.0,0.14309939]
[1722260492446,0.04850255,69607.0,69597.0,0.14309939]
[1722260492673,0.0642,69613.0,69597.0,0.14309939]
[1722260492881,0.0642,69613.0,69598.0,0.073]
[1722260492882,0.0225443,69605.0,69598.0,0.073]
[1722260493035,0.0225443,69605.0,69599.0,0.14597252]
[1722260493199,0.0225443,69605.0,69602.0,0.05]
[1722260493410,0.0225443,69605.0,69603.0,0.14309939]
[1722260493613,0.0225443,69605.0,69604.0,0.023]
[1722260493845,0.0225443,69605.0,69604.0,0.16609939]
[1722260494235,0.0225443,69605.0,69604.0,0.55976839]
[1722260494443,0.0225443,69605.0,69604.0,0.62459939]
[1722260494651,0.002,69611.0,69607.0,0.05]
[1722260494846,0.00084,69617.0,69608.0,0.16609939]
[1722260495269,0.0075949,69616.0,69608.0,0.16609939]
[1722260495467,0.00084,69617.0,69608.0,0.16609939]
[1722260497135,0.00084,69617.0,69609.0,0.05]
[1722260497344,0.00084,69617.0,69610.0,0.14309939]
[1722260497582,0.00084,69617.0,69611.0,0.02587258]
[1722260497821,0.00084,69617.0,69612.0,0.14309939]
[1722260497822,0.02253927,69616.0,69612.0,0.14309939]
[1722260497976,0.02253927,69616.0,69613.0,0.02587251]
[1722260498176,0.02253927,69616.0,69614.0,0.14309939]
[1722260498517,0.02253927,69616.0,69615.0,0.023]
[1722260498805,0.02253927,69616.0,69615.0,0.16609939]
[1722260499212,0.02253927,69616.0,69615.0,0.23069939]
[1722260499415,0.02253927,69616.0,69615.0,1.15920074]
[1722260499641,0.02253927,69616.0,69615.0,1.93091652]
[1722260499843,0.00184,69617.0,69616.0,0.05]
[1722260499844,0.00084,69617.0,69616.0,0.05]
[1722260500054,0.00084,69617.0,69616.0,0.26609939]
[1722260500233,0.00084,69617.0,69616.0,0.31609939]
[1722260500444,0.00084,69617.0,69616.0,0.41609939]
[1722260500742,0.00084,69617.0,69616.0,1.34282439]
[1722260501090,0.00084,69617.0,69616.0,1.63011439]
[1722260501716,0.00084,69641.0,69635.0,0.05]
[1722260501939,0.00084,69641.0,69636.0,0.42747076]
[1722260502113,0.00084,69641.0,69636.0,0.37747076]
[1722260502312,0.00084,69641.0,69638.0,0.05]
[1722260502515,0.00084,69641.0,69639.0,0.16609939]
[1722260502922,0.00084,69641.0,69639.0,0.21609939]
[1722260503121,0.02337022,69641.0,69639.0,0.31609939]
[1722260503326,0.02337022,69641.0,69640.0,0.048]
[1722260503524,0.02337022,69641.0,69640.0,0.74688539]
[1722260503731,0.02337022,69641.0,69640.0,1.30386752]
[1722260504132,0.02337022,69641.0,69640.0,2.05571718]
[1722260504602,0.02337022,69641.0,69640.0,2.34290818]
[1722260504761,0.02337022,69641.0,69640.0,2.38120818]
[1722260504957,0.02337022,69641.0,69640.0,2.09401718]
[1722260505162,0.02337022,69641.0,69640.0,2.09801718]
[1722260505163,0.02437022,69641.0,69640.0,2.09801718]
[1722260505774,0.02437022,69641.0,69640.0,2.38520818]
[1722260506008,0.02437022,69641.0,69640.0,2.11201718]
[1722260506137,0.02437022,69641.0,69640.0,2.39920818]
[1722260506338,0.02437022,69641.0,69640.0,2.68639918]
[1722260506616,0.02437022,69641.0,69640.0,2.42550818]
[1722260507100,0.02437022,69641.0,69640.0,2.13831718]
[1722260507306,0.02437022,69641.0,69640.0,2.42550818]
[1722260507529,0.001,69641.0,69640.0,2.42550818]
[1722260507829,0.00809,69649.0,69648.0,0.15]
[1722260507950,0.00809,69649.0,69648.0,0.31609939]
[1722260508509,0.00809,69649.0,69648.0,0.41409939]
[1722260509044,0.00809,69649.0,69648.0,0.94483639]
[1722260509174,0.00809,69649.0,69648.0,0.87308152]
[1722260509374,0.00909,69649.0,69648.0,0.88308152]
[1722260509603,0.00909,69649.0,69648.0,0.27609939]
[1722260509806,0.00909,69649.0,69648.0,0.17609939]
[1722260509807,0.01109,69649.0,69648.0,0.17609939]
[1722260509963,0.01109,69649.0,69648.0,0.15309939]
[1722260510167,0.01109,69649.0,69648.0,0.14309939]
[1722260510168,0.01809896,69649.0,69648.0,0.14309939]
[1722260510366,0.00809896,69649.0,69648.0,0.14309939]
[1722260510879,0.03053753,69649.0,69648.0,0.14309939]
[1722260511075,0.03153753,69649.0,69648.0,0.15009939]
[1722260511274,0.02352857,69649.0,69648.0,0.15009939]
[1722260511692,0.02252857,69649.0,69648.0,0.14309939]
[1722260512093,0.02352857,69649.0,69648.0,0.17409939]
[1722260512501,0.001,69649.0,69648.0,0.17409939]
[1722260514257,0.574021,69649.0,69648.0,0.008]
[1722260514455,0.574021,69649.0,69625.0,0.1]
[1722260514456,9e-05,69629.0,69625.0,0.1]
[1722260514619,0.1422,69628.0,69626.0,0.14309939]
[1722260514822,0.0080382,69627.0,69626.0,0.14309939]
[1722260515043,0.0079482,69627.0,69626.0,0.14309939]
[1722260516422,0.0080382,69627.0,69626.0,0.14309939]
[1722260516622,0.0079482,69627.0,69626.0,0.14309939]
[1722260517450,0.0079482,69627.0,69626.0,0.21464294]
[1722260517661,9e-05,69636.0,69626.0,0.23764294]
[1722260517909,9e-05,69630.0,69627.0,0.023]
[1722260518227,9e-05,69632.0,69628.0,0.14309939]
[1722260518372,9e-05,69632.0,69629.0,0.023]
[1722260518577,9e-05,69634.0,69630.0,0.14309939]
[1722260518820,0.1458,69639.0,69630.0,0.14309939]
[1722260518821,9e-05,69632.0,69630.0,0.14309939]
[1722260519339,9e-05,69634.0,69630.0,0.14309939]
[1722260519490,0.02253245,69632.0,69630.0,0.14309939]
[1722260519878,9e-05,69632.0,69630.0,0.14309939]
[1722260520680,0.1458,69639.0,69630.0,0.14309939]
[1722260520681,9e-05,69631.0,69630.0,0.14309939]
[1722260520997,9e-05,69631.0,69630.0,0.16609939]
[1722260521384,9e-05,69631.0,69630.0,0.14309939]
[1722260521802,0.287202,69638.0,69630.0,0.14309939]
[1722260522025,0.143605,69636.0,69630.0,0.14309939]
[1722260522229,0.1458,69639.0,69630.0,0.14309939]
[1722260522790,0.1458,69639.0,69631.0,0.023]
[1722260522995,0.1458,69639.0,69632.0,0.14309939]
[1722260522996,0.0813,69639.0,69632.0,0.14309939]
[1722260523366,0.0813,69639.0,69620.0,0.1463]
[1722260523367,0.145,69637.0,69615.0,0.1]
[1722260523580,0.05,69649.0,69620.0,0.14309939]
[1722260523581,0.145,69635.0,69620.0,0.14309939]
[1722260523777,0.145,69635.0,69630.0,0.002]
[1722260523778,0.432214,69635.0,69630.0,0.002]
[1722260524126,0.145,69631.0,69630.0,0.002]
[1722260524431,0.145,69631.0,69620.0,0.14309939]
[1722260525020,0.145,69631.0,69621.0,0.023]
[1722260525224,0.145,69631.0,69622.0,0.14309939]
[1722260525560,0.146,69631.0,69622.0,0.14309939]
[1722260525993,0.147,69631.0,69622.0,0.14309939]
[1722260526883,0.147,69631.0,69630.0,0.07154355]
[1722260526884,0.0837,69631.0,69630.0,0.07154355]
[1722260527159,0.002,69631.0,69630.0,0.16609939]
[1722260527584,0.02453259,69631.0,69630.0,0.16609939]
[1722260527960,0.02353259,69631.0,69630.0,0.16609939]
[1722260528171,0.001,69631.0,69630.0,0.70820329]
[1722260528325,0.001,69631.0,69630.0,0.51609939]
[1722260528532,0.001,69631.0,69630.0,0.94694739]
[1722260528748,0.001,69631.0,69630.0,0.65971539]
[1722260529323,0.0832,69647.0,69632.0,0.15]
[1722260529518,0.0832,69647.0,69638.0,0.05]
[1722260529810,0.0832,69647.0,69634.0,0.143607]
[1722260529811,0.0832,69647.0,69640.0,0.05]
[1722260530003,0.00084,69641.0,69639.0,0.07154355]
[1722260530251,0.00084,69641.0,69640.0,0.59709439]
[1722260530489,0.00084,69641.0,69640.0,1.15358539]
[1722260530949,0.00084,69641.0,69640.0,0.86639439]
[1722260531186,0.00084,69641.0,69640.0,1.15358539]
[1722260531412,0.02436792,69641.0,69640.0,1.44077639]
[1722260531802,0.02436792,69641.0,69640.0,1.72796739]
[1722260531803,0.00184,69641.0,69640.0,1.72796739]
[1722260532533,0.00184,69641.0,69640.0,1.44277639]
[1722260532764,0.00184,69641.0,69640.0,1.06758539]
[1722260532765,0.00284,69641.0,69640.0,1.06758539]
[1722260533002,0.00284,69641.0,69640.0,0.33009939]
[1722260533431,0.00284,69641.0,69640.0,1.16088539]
[1722260535030,0.00284,69641.0,69640.0,1.70847639]
[1722260535284,0.00284,69641.0,69640.0,1.99566739]
[1722260535285,0.02536602,69641.0,69640.0,1.99566739]
[1722260535511,0.02536602,69641.0,69640.0,1.99766739]
[1722260535748,0.1392,69661.0,69652.0,0.05]
[1722260535987,0.1392,69661.0,69653.0,0.16609939]
[1722260536450,0.1392,69661.0,69653.0,0.30966739]
[1722260536680,0.1392,69661.0,69653.0,0.16609939]
[1722260536925,0.1392,69661.0,69653.0,0.30966739]
[1722260537550,0.00084,69666.0,69654.0,0.05]
[1722260537811,0.00084,69666.0,69661.0,0.1]
[1722260538023,0.00084,69666.0,69665.0,0.430632]
[1722260538222,0.00084,69666.0,69665.0,0.62373139]
[1722260538426,0.00084,69666.0,69665.0,1.01081939]
[1722260538630,0.00084,69666.0,69665.0,1.13381939]
[1722260538845,0.02336066,69666.0,69665.0,1.18011939]
[1722260539040,0.02336066,69666.0,69665.0,0.89303139]
[1722260539247,0.02336066,69666.0,69665.0,0.45964339]
[1722260539467,0.02336066,69666.0,69665.0,1.03381939]
[1722260539671,0.02336066,69666.0,69665.0,0.74673139]
[1722260539861,0.02336066,69666.0,69665.0,1.13381939]
[1722260540072,0.02336066,69666.0,69665.0,1.42290739]
[1722260540229,0.02336066,69666.0,69665.0,1.46920739]
[1722260540441,0.02336066,69666.0,69665.0,2.19953748]
[1722260540638,0.00670955,69670.0,69669.0,1.069677]
[1722260540923,0.00670955,69670.0,69669.0,2.00812952]
[1722260541126,0.00670955,69670.0,69669.0,2.29520052]
[1722260541328,0.00670955,69670.0,69669.0,2.34150052]
[1722260541943,0.00670955,69670.0,69669.0,2.34305472]
[1722260542298,0.00670955,69670.0,69669.0,2.05598372]
[1722260542503,0.00670955,69670.0,69669.0,2.06891272]
[1722260542715,0.00670955,69670.0,69669.0,0.65208152]
[1722260543304,0.00670955,69670.0,69669.0,1.19561652]
[1722260543505,0.00670955,69670.0,69669.0,1.48268752]
[1722260543749,0.00670955,69670.0,69669.0,0.65208152]
[1722260543934,0.02922762,69670.0,69669.0,0.60208152]
[1722260544195,0.02922762,69670.0,69669.0,0.24309939]
[1722260544398,0.00670955,69670.0,69669.0,0.39309939]
[1722260545132,0.00670955,69670.0,69669.0,0.55963439]
[1722260545717,0.00670955,69670.0,69669.0,0.41609939]
[1722260545924,0.00670955,69670.0,69669.0,0.41765359]
[1722260546206,0.00670955,69670.0,69669.0,0.36609939]
[1722260546404,0.00670955,69670.0,69669.0,0.38009939]
[1722260546828,0.14930955,69670.0,69669.0,0.15709939]
[1722260547459,0.1718298,69670.0,69669.0,0.15709939]
[1722260547670,0.1718298,69670.0,69669.0,0.014]
[1722260547923,0.0292298,69670.0,69654.0,0.0015542]
[1722260548136,0.0292298,69670.0,69650.0,0.7843]
[1722260548137,0.147,69665.0,69655.0,0.14309939]
[1722260548748,0.434092,69665.0,69655.0,0.14309939]
[1722260548953,0.28708,69667.0,69655.0,0.14309939]
[1722260548954,0.0815,69663.0,69655.0,0.14309939]
[1722260549571,0.0815,69663.0,69655.0,0.14509939]
[1722260549794,0.14355,69662.0,69655.0,0.14509939]
[1722260549920,0.143553,69661.0,69655.0,0.14509939]
[1722260550128,0.28708,69667.0,69655.0,0.14509939]
[1722260550129,0.143561,69657.0,69655.0,0.002]
[1722260550334,0.147,69656.0,69655.0,0.002]
[1722260552088,0.147,69656.0,69643.0,1.2764]
[1722260552386,0.147,69656.0,69655.0,0.003]
[1722260552591,0.147,69656.0,69655.0,0.006]
[1722260552995,0.147,69656.0,69644.0,0.16609939]
[1722260553173,0.148,69656.0,69655.0,0.01]
[1722260553628,0.578687,69656.0,69655.0,0.01]
[1722260553945,0.143566,69655.0,69644.0,0.14309939]
[1722260554144,0.143567,69654.0,69644.0,0.14309939]
[1722260554359,0.434125,69656.0,69644.0,0.14309939]
[1722260554613,0.147,69656.0,69644.0,0.14309939]
[1722260554777,0.05386911,69655.0,69643.0,0.003]
[1722260554979,0.0821,69650.0,69643.0,0.14609939]
[1722260555184,0.225687,69644.0,69643.0,0.003]
[1722260555448,0.0821,69644.0,69643.0,0.003]
[1722260556394,0.863635,69644.0,69643.0,0.008]
[1722260556619,0.576461,69644.0,69643.0,0.008]
[1722260556843,0.863635,69644.0,69643.0,0.008]
[1722260556996,1.20216438,69644.0,69643.0,0.005]
[1722260557580,1.20216438,69644.0,69625.0,0.468]
[1722260557581,0.0632,69630.0,69625.0,0.468]
[1722260557789,0.0632,69630.0,69617.0,0.42926131]
[1722260557790,0.287242,69628.0,69617.0,0.42926131]
[1722260558027,0.143626,69626.0,69615.0,0.468]
[1722260558224,0.287245,69627.0,69615.0,0.468]
[1722260558225,0.143627,69625.0,69615.0,0.468]
[1722260558436,0.0794,69629.0,69615.0,0.468]
[1722260558561,0.223018,69629.0,69615.0,0.468]
[1722260558761,0.143621,69628.0,69615.0,0.468]
[1722260559575,0.02253601,69627.0,69615.0,0.468]
[1722260559983,0.02253601,69627.0,69616.0,0.023]
[1722260560412,0.02253601,69627.0,69609.0,0.468]
[1722260560413,0.496291,69623.0,69609.0,0.468]
[1722260560686,0.858652,69623.0,69609.0,0.468]
[1722260560851,0.571391,69623.0,69609.0,0.468]
[1722260561383,0.858652,69623.0,69609.0,0.468]
[1722260561787,0.28413,69623.0,69609.0,0.468]
[1722260561992,0.858652,69623.0,69609.0,0.468]
[1722260562534,0.1405,69623.0,69609.0,0.468]
[1722260565252,0.1405,69623.0,69610.0,0.05]
[1722260565427,0.2604,69644.0,69610.0,0.05]
[1722260565428,0.0814,69629.0,69622.0,0.14402339]
[1722260565625,0.0814,69629.0,69623.0,0.21751521]
[1722260565824,0.0814,69629.0,69624.0,0.023]
[1722260566032,0.0814,69629.0,69625.0,0.14309939]
[1722260566617,0.001,69644.0,69625.0,0.14309939]
[1722260566618,0.1386,69643.0,69626.0,0.023]
[1722260566848,0.1386,69643.0,69627.0,0.14309939]